fUSD/lending_fUSD_20250909
["ID","MTS","AMOUNT","RATE_DAILY","PERIOD"]
[384400503,1757376644019,-400.0,0.00019999,2]
[384400504,1757376644029,-400.0,0.00019999,2]
[384400505,1757376644039,-400.0,0.00019999,2]
[384400506,1757376644048,-400.0,0.00019999,2]
[384400507,1757376644058,-400.0,0.00019999,2]
[384400508,1757376644068,-400.0,0.00019999,2]
[384400509,1757376644078,-495.26322745,0.00019999,2]
[384400510,1757376644088,-400.0,0.00019999,2]
[384400511,1757376644097,-405.43,0.00019999,2]
[384400512,1757376644107,-400.0,0.00019999,2]
[384400513,1757376644117,-400.0,0.00019999,2]
[384400514,1757376644126,-400.0,0.00019999,2]
[384400515,1757376644136,-200.0,0.00019999,2]
[384400516,1757376644147,-150.0,0.00019999,2]
[384400517,1757376644157,-150.0,0.00019999,2]
[384400518,1757376644167,-150.0,0.00019999,2]
[384400519,1757376644176,-150.0,0.00019999,2]
[384400520,1757376644186,-400.0,0.00019999,2]
[384400521,1757376644196,-400.0,0.00019999,2]
[384400522,1757376644206,-400.0,0.00019999,2]
[384400523,1757376644215,-400.0,0.00019999,2]
[384400524,1757376644225,-400.0,0.00019999,2]
[384400525,1757376644235,-400.0,0.00019999,2]
[384400526,1757376644245,-400.0,0.00019999,2]
[384400527,1757376644255,-400.0,0.00019999,2]
[384400528,1757376644264,-239.75277626,0.00019999,2]
[384400529,1757376644274,-400.0,0.00019999,2]
[384400530,1757376644284,-400.0,0.00019999,2]
[384400531,1757376644294,-400.0,0.00019999,2]
[384400532,1757376644304,-400.0,0.00019999,2]
[384400533,1757376644314,-400.0,0.00019999,2]
[384400534,1757376644324,-400.0,0.00019999,2]
[384400535,1757376644334,-400.0,0.00019999,2]
[384400536,1757376644343,-400.0,0.00019999,2]
[384400537,1757376644352,-400.0,0.00019999,2]
[384400538,1757376644361,-331.45,0.00019999,2]
[384400539,1757376644369,-611.92,0.00019999,2]
[384400540,1757376644378,-466.09,0.00019999,2]
[384400541,1757376644387,-400.0,0.00019999,2]
[384400542,1757376644395,-150.0,0.00019999,2]
[384400543,1757376644405,-500.0,0.00019999,2]
[384400544,1757376644414,-150.0,0.00019999,2]
[384400545,1757376644422,-500.0,0.00019999,2]
[384400546,1757376644432,-150.0,0.00019999,2]
[384400547,1757376644442,-402.02039369,0.00019999,2]
[384400548,1757376644452,-400.0,0.00019999,2]
[384400549,1757376644461,-500.0,0.00019999,2]
[384400550,1757376644471,-400.0,0.00019999,2]
[384400551,1757376644482,-469.05,0.00019999,2]
[384400552,1757376644492,-250.0,0.00019999,2]
[384400553,1757376644501,-289.26496662,0.00019999,2]
[384400554,1757376644511,-400.0,0.00019999,2]
[384400555,1757376644521,-400.0,0.00019999,2]
[384400556,1757376644531,-400.0,0.00019999,2]
[384400557,1757376644542,-399.75617141,0.00019999,2]
[384400558,1757376644553,-400.0,0.00019999,2]
[384400559,1757376644563,-400.0,0.00019999,2]
[384400560,1757376644573,-400.0,0.00019999,2]
[384400561,1757376644583,-400.0,0.00019999,2]
[384400562,1757376644593,-301.26,0.00019999,2]
[384400563,1757376644603,-348.07,0.00019999,2]
[384400564,1757376644613,-400.0,0.00019999,2]
[384400565,1757376644623,-400.0,0.00019999,2]
[384400566,1757376644633,-400.0,0.00019999,2]
[384400567,1757376644643,-400.0,0.00019999,2]
[384400568,1757376644653,-400.0,0.00019999,2]
[384400569,1757376644664,-400.0,0.00019999,2]
[384400570,1757376644674,-437.43,0.00019999,2]
[384400571,1757376644683,-400.0,0.00019999,2]
[384400572,1757376644693,-843.74,0.00019999,2]
[384400573,1757376644702,-843.74,0.00019999,2]
[384400574,1757376644712,-843.74,0.00019999,2]
[384400575,1757376644722,-843.74,0.00019999,2]
[384400576,1757376644731,-843.74,0.00019999,2]
[384400577,1757376644741,-843.74,0.00019999,2]
[384400578,1757376644751,-843.74,0.00019999,2]
[384400579,1757376644761,-843.74,0.00019999,2]
[384400580,1757376644771,-843.74,0.00019999,2]
[384400581,1757376644781,-843.74,0.00019999,2]
[384400582,1757376644790,-843.74,0.00019999,2]
[384400583,1757376644800,-843.74,0.00019999,2]
[384400584,1757376644810,-843.74,0.00019999,2]
[384400585,1757376644820,-843.74,0.00019999,2]
[384400586,1757376644830,-843.74,0.00019999,2]
[384400587,1757376644840,-843.74,0.00019999,2]
[384400588,1757376644849,-843.74,0.00019999,2]
[384400589,1757376644859,-843.74,0.00019999,2]
[384400590,1757376644869,-843.74,0.00019999,2]
[384400591,1757376644878,-843.74,0.00019999,2]
[384400592,1757376644888,-843.74,0.00019999,2]
[384400593,1757376644898,-843.74,0.00019999,2]
[384400594,1757376644908,-843.96374688,0.00019999,2]
[384400595,1757376644917,-510.0,0.0002,2]
[384400596,1757376644927,-84976.41922499,0.0002,2]
[384400597,1757376644938,-202.62116996,0.0002,2]
[384400598,1757376644947,-395026.07876467,0.0002,2]
[384400599,1757376645146,-501.22519993,0.0002,2]
[384400600,1757376645159,-17268.08,0.0002,2]
[384400601,1757376645171,-1664.60356458,0.0002,2]
[384400602,1757376645185,-683.38508753,0.0002,2]
[384400607,1757376646445,-400.0,0.00019998,2]
[384400608,1757376646455,-21905.56196658,0.0002,2]
[384400609,1757376646712,-1490.3020284,0.0002,2]
[384400640,1757376701910,150.0,0.0001938,7]
[384400642,1757377249717,153.52,9.47e-05,2]
[384400643,1757377249923,153.52,0.00010027,2]
[384400644,1757377250146,153.52,0.00010584,2]
[384400645,1757377250380,153.52,0.00011141,2]
[384400646,1757377250883,153.52,0.00011698,2]
[384400647,1757377250956,153.52,0.00012255,2]
[384400648,1757377251190,153.52,0.00012812,2]
[384400649,1757377251405,153.52,0.00013369,2]
[384400650,1757377251604,153.52,0.00013926,2]
[384400651,1757377251846,153.52,0.00014483,2]
[384400653,1757377252315,153.52,0.0001504,2]
[384400654,1757377252550,153.52,0.00015597,2]
[384400655,1757377252773,153.52,0.00016154,2]
[384400656,1757377252989,153.52,0.00016711,2]
[384400657,1757377253209,153.52,0.00017268,2]
[384400658,1757377253417,153.52,0.00017825,2]
[384400659,1757377253676,153.52,0.00018382,2]
[384400660,1757377254009,168.0,0.0002,30]
[384400661,1757377254270,164.0,0.0002,4]
[384400662,1757377254523,164.0,0.0002,4]
[384400663,1757377254744,164.0,0.0002,4]
[384400664,1757377255014,164.0,0.0002,4]
[384400665,1757377255256,164.0,0.0002,4]
[384400666,1757377255500,164.0,0.0002,4]
[384400669,1757377427252,150.0,0.00030136,120]
[384400670,1757377473109,150.0,0.00030137,120]
[384400671,1757377487672,245.55,0.0001856,2]
[384400672,1757377536389,250.0,0.00015,2]
[384400673,1757377547602,7171.73394757,0.0001995,15]
[384400674,1757377554323,4451.48723176,0.00015,10]
[384400678,1757377639520,150.0,0.00018745,7]
[384400680,1757377663702,618.75066019,0.0002,5]
[384400681,1757377671591,6148.27587651,0.00013,15]
[384400682,1757377671622,8300.0,0.0002,4]
[384400683,1757377688448,2507.39392835,0.00016,14]
[384400685,1757377713924,487.7044808,0.0002,10]
[384400686,1757377714915,518.30516938,0.0002,7]
[384400687,1757377716403,1471.30086354,0.0001421,7]
[384400690,1757377723275,500.0,0.0003013,120]
[384400691,1757377805945,4000.0,0.0002,4]
[384400702,1757377831533,-164.43,0.00018606,2]
[384400703,1757377831544,-135.98037867,0.00018685,2]
[384400704,1757377831591,-734.53962133,0.00018685,2]
[384400705,1757377831603,-192.32,0.00018745,2]
[384400706,1757377831614,-250.0,0.00018764,2]
[384400707,1757377831629,-361.0,0.00018783,2]
[384400708,1757377831640,-250.0,0.00018791,2]
[384400709,1757377831651,-150.0,0.00018795,2]
[384400710,1757377831663,-274.99168437,0.00018825,2]
[384400711,1757377831675,-361.0,0.00018833,2]
[384400712,1757377831686,-76.69162125,0.00018836,2]
[384400713,1757377831699,-284.30837875,0.00018836,2]
[384400714,1757377831710,-170.89,0.00018842,2]
[384400715,1757377831721,-153.52,0.00018939,2]
[384400716,1757377831731,-361.0,0.00018954,2]
[384400717,1757377831741,-277.35679052,0.00018999,2]
[384400718,1757377831752,-361.0,0.00019061,2]
[384400719,1757377831762,-503.0,0.00019096,2]
[384400720,1757377831772,-361.0,0.00019188,2]
[384400721,1757377831783,-361.0,0.00019215,2]
[384400722,1757377831794,-168.0,0.00019343,2]
[384400723,1757377832146,-166.67,0.00019363,2]
[384400724,1757377832166,-361.0,0.00019508,2]
[384400725,1757377832180,-908.23798431,0.000196,2]
[384400726,1757377832201,-91.76201569,0.000196,2]
[384400727,1757377832212,-1200.0,0.0001977,2]
[384400728,1757377832222,-9146.7307688,0.00019772,2]
[384400729,1757377832232,-1000.0,0.000198,2]
[384400730,1757377832242,-850.0,0.000198,2]
[384400731,1757377832251,-322.6107,0.00019885,2]
[384400732,1757377832261,-500.0,0.00019885,2]
[384400733,1757377832271,-4368.83420454,0.00019896,2]
[384400734,1757377832280,-1301.0,0.00019897,2]
[384400735,1757377832290,-601.0,0.00019897,2]
[384400736,1757377832300,-568.0,0.00019897,2]
[384400737,1757377832311,-1578.0,0.00019897,2]
[384400738,1757377832320,-812.0,0.00019897,2]
[384400739,1757377832330,-1176.0,0.00019897,2]
[384400740,1757377832340,-897.0,0.00019897,2]
[384400741,1757377832350,-2036.0,0.00019897,2]
[384400742,1757377832359,-1258.0,0.00019897,2]
[384400743,1757377832370,-885.0,0.00019897,2]
[384400744,1757377832379,-5000.0,0.000199,2]
[384400745,1757377832389,-289.30599084,0.000199,2]
[384400746,1757377832398,-1000.0,0.000199,2]
[384400747,1757377832408,-168.0,0.00019913,2]
[384400748,1757377832418,-500.0,0.00019973,2]
[384400749,1757377832429,-500.0,0.00019973,2]
[384400750,1757377832438,-500.0,0.00019973,2]
[384400751,1757377832448,-500.0,0.00019973,2]
[384400752,1757377832458,-843.36,0.00019989,3]
[384400753,1757377832467,-242.801,0.0001999,2]
[384400754,1757377832476,-400.0,0.00019998,2]
[384400755,1757377832486,-469.05,0.00019998,2]
[384400756,1757377832495,-465.41,0.00019998,2]
[384400757,1757377832505,-399.75617141,0.00019998,2]
[384400758,1757377832515,-400.0,0.00019998,2]
[384400759,1757377832524,-400.0,0.00019998,2]
[384400760,1757377832535,-400.0,0.00019998,2]
[384400761,1757377832545,-305.61,0.00019998,2]
[384400762,1757377832555,-474.18,0.00019998,2]
[384400763,1757377832564,-252.27,0.00019998,2]
[384400764,1757377832574,-400.0,0.00019998,2]
[384400765,1757377832584,-400.0,0.00019998,2]
[384400766,1757377832594,-400.0,0.00019998,2]
[384400767,1757377832603,-400.0,0.00019998,2]
[384400768,1757377832613,-400.0,0.00019998,2]
[384400769,1757377832622,-400.0,0.00019998,2]
[384400770,1757377832632,-400.0,0.00019998,2]
[384400771,1757377832641,-400.0,0.00019998,2]
[384400772,1757377832651,-400.0,0.00019998,2]
[384400773,1757377832660,-400.0,0.00019998,2]
[384400774,1757377832670,-400.0,0.00019998,2]
[384400775,1757377832681,-2325.06494498,0.00019998,2]
[384400776,1757377832691,-400.0,0.00019999,2]
[384400777,1757377832700,-400.0,0.00019999,2]
[384400778,1757377832709,-400.0,0.00019999,2]
[384400779,1757377832719,-502.51604562,0.00019999,2]
[384400780,1757377832728,-400.0,0.00019999,2]
[384400781,1757377832738,-400.0,0.00019999,2]
[384400782,1757377832747,-400.0,0.00019999,2]
[384400783,1757377832757,-544.04,0.00019999,2]
[384400784,1757377832768,-400.0,0.00019999,2]
[384400785,1757377832777,-313.12054514,0.00019999,2]
[384400786,1757377832787,-400.0,0.00019999,2]
[384400787,1757377832796,-400.0,0.00019999,2]
[384400788,1757377832806,-347.04,0.00019999,2]
[384400789,1757377832819,-388.44997502,0.00019999,2]
[384400790,1757377832829,-406.0847191,0.00019999,2]
[384400791,1757377832838,-400.0,0.00019999,2]
[384400792,1757377832848,-400.0,0.00019999,2]
[384400793,1757377832858,-400.0,0.00019999,2]
[384400794,1757377832868,-400.0,0.00019999,2]
[384400795,1757377832878,-400.0,0.00019999,2]
[384400796,1757377832889,-400.0,0.00019999,2]
[384400797,1757377832899,-400.0,0.00019999,2]
[384400798,1757377832910,-400.0,0.00019999,2]
[384400799,1757377832921,-400.0,0.00019999,2]
[384400800,1757377832932,-400.0,0.00019999,2]
[384400801,1757377832941,-400.0,0.00019999,2]
[384400802,1757377832951,-400.0,0.00019999,2]
[384400803,1757377832960,-400.0,0.00019999,2]
[384400804,1757377832971,-400.0,0.00019999,2]
[384400805,1757377832980,-211.44495802,0.00019999,2]
[384400806,1757377832990,-400.0,0.00019999,2]
[384400807,1757377832999,-808.59,0.00019999,2]
[384400808,1757377833009,-808.59,0.00019999,2]
[384400809,1757377833019,-400.0,0.00019999,2]
[384400810,1757377833029,-808.59,0.00019999,2]
[384400811,1757377833039,-808.59,0.00019999,2]
[384400812,1757377833050,-808.59,0.00019999,2]
[384400813,1757377833060,-808.59,0.00019999,2]
[384400814,1757377833070,-808.59,0.00019999,2]
[384400815,1757377833080,-648.21435259,0.00019999,2]
[384400827,1757377837486,-192.49417906,0.00018744,2]
[384400828,1757377837496,-3385.0,0.00019897,2]
[384400829,1757377837506,-160.37564741,0.00019999,2]
[384400830,1757377837515,-808.59,0.00019999,2]
[384400831,1757377837524,-808.59,0.00019999,2]
[384400832,1757377837534,-808.59,0.00019999,2]
[384400833,1757377837543,-808.59,0.00019999,2]
[384400834,1757377837552,-808.59,0.00019999,2]
[384400835,1757377837562,-808.59,0.00019999,2]
[384400836,1757377837571,-808.59,0.00019999,2]
[384400837,1757377837585,-808.59,0.00019999,2]
[384400838,1757377837595,-808.59,0.00019999,2]
[384400839,1757377837604,-808.59,0.00019999,2]
[384400840,1757377837615,-400.0,0.00019999,2]
[384400841,1757377837624,-808.59,0.00019999,2]
[384400842,1757377837633,-808.59,0.00019999,2]
[384400843,1757377837643,-808.59,0.00019999,2]
[384400844,1757377837652,-808.59,0.00019999,2]
[384400845,1757377837663,-808.59,0.00019999,2]
[384400846,1757377837673,-808.67374688,0.00019999,2]
[384400847,1757377837684,-400.0,0.00019999,2]
[384400848,1757377837694,-532.08655058,0.00019999,2]
[384400849,1757377837703,-400.0,0.00019999,2]
[384400850,1757377837712,-400.0,0.00019999,2]
[384400851,1757377837722,-400.0,0.00019999,2]
[384400852,1757377837731,-400.0,0.00019999,2]
[384400853,1757377837740,-432.95160356,0.00019999,2]
[384400854,1757377837753,-1399.99,0.00019999,2]
[384400855,1757377837762,-400.0,0.00019999,2]
[384400856,1757377837771,-400.0,0.00019999,2]
[384400857,1757377837780,-400.0,0.00019999,2]
[384400858,1757377837789,-400.0,0.00019999,2]
[384400860,1757377837799,-400.0,0.00019999,2]
[384400861,1757377837809,-400.0,0.00019999,2]
[384400862,1757377837819,-400.0,0.00019999,2]
[384400863,1757377837828,-264.99536975,0.00019999,2]
[384400864,1757377837837,-400.0,0.00019999,2]
[384400865,1757377837846,-400.0,0.00019999,2]
[384400866,1757377837856,-400.0,0.00019999,2]
[384400867,1757377837865,-400.0,0.00019999,2]
[384400868,1757377837874,-466.09,0.00019999,2]
[384400869,1757377837884,-400.0,0.00019999,2]
[384400870,1757377837893,-500.0,0.00019999,2]
[384400871,1757377837902,-500.0,0.00019999,2]
[384400872,1757377837912,-400.0,0.00019999,2]
[384400874,1757377837921,-400.0,0.00019999,2]
[384400875,1757377837932,-400.0,0.00019999,2]
[384400877,1757377837941,-150.0,0.00019999,2]
[384400879,1757377837951,-400.0,0.00019999,2]
[384400881,1757377837960,-150.0,0.00019999,2]
[384400882,1757377837969,-400.0,0.00019999,2]
[384400883,1757377837979,-150.0,0.00019999,2]
[384400884,1757377837988,-150.0,0.00019999,2]
[384400885,1757377837997,-250.0,0.00019999,2]
[384400886,1757377838007,-150.0,0.00019999,2]
[384400887,1757377838016,-289.26496662,0.00019999,2]
[384400888,1757377838026,-150.0,0.00019999,2]
[384400889,1757377838035,-400.0,0.00019999,2]
[384400890,1757377838045,-400.0,0.00019999,2]
[384400891,1757377838054,-348.07,0.00019999,2]
[384400892,1757377838064,-400.0,0.00019999,2]
[384400893,1757377838074,-400.0,0.00019999,2]
[384400894,1757377838084,-400.0,0.00019999,2]
[384400895,1757377838094,-301.26,0.00019999,2]
[384400896,1757377838103,-400.0,0.00019999,2]
[384400897,1757377838112,-400.0,0.00019999,2]
[384400898,1757377838122,-400.0,0.00019999,2]
[384400899,1757377838131,-457.23,0.00019999,2]
[384400900,1757377838140,-400.0,0.00019999,2]
[384400901,1757377838150,-400.0,0.00019999,2]
[384400902,1757377838159,-400.0,0.00019999,2]
[384400903,1757377838168,-2860.98,0.00019999,2]
[384400904,1757377838177,-150.0,0.00019999,2]
[384400905,1757377838189,-150.0,0.00019999,2]
[384400906,1757377838199,-400.0,0.00019999,2]
[384400907,1757377838211,-150.0,0.00019999,2]
[384400908,1757377838220,-500.0,0.00019999,2]
[384400909,1757377838229,-437.43,0.00019999,2]
[384400910,1757377838239,-400.0,0.00019999,2]
[384400911,1757377838248,-150.0,0.00019999,2]
[384400912,1757377838257,-400.0,0.00019999,2]
[384400913,1757377838266,-500.0,0.00019999,2]
[384400914,1757377838276,-500.0,0.00019999,2]
[384400915,1757377838285,-1153.1,0.00019999,2]
[384400916,1757377838296,-400.0,0.00019999,2]
[384400917,1757377838306,-400.0,0.00019999,2]
[384400918,1757377838315,-400.0,0.00019999,2]
[384400919,1757377838325,-400.0,0.00019999,2]
[384400920,1757377838334,-400.0,0.00019999,2]
[384400921,1757377838344,-400.0,0.00019999,2]
[384400922,1757377838353,-400.0,0.00019999,2]
[384400923,1757377838362,-400.0,0.00019999,2]
[384400924,1757377838372,-400.0,0.00019999,2]
[384400925,1757377838381,-400.0,0.00019999,2]
[384400926,1757377838390,-400.0,0.00019999,2]
[384400927,1757377838399,-155.4,0.00019999,2]
[384400928,1757377838409,-400.0,0.00019999,2]
[384400929,1757377838418,-206.71,0.00019999,2]
[384400930,1757377838427,-400.0,0.00019999,2]
[384400931,1757377838441,-400.0,0.00019999,2]
[384400932,1757377838451,-414.34,0.00019999,2]
[384400933,1757377838460,-400.0,0.00019999,2]
[384400934,1757377838470,-400.0,0.00019999,2]
[384400935,1757377838479,-400.0,0.00019999,2]
[384400936,1757377838489,-400.0,0.00019999,2]
[384400937,1757377838498,-400.0,0.00019999,2]
[384400938,1757377838508,-400.0,0.00019999,2]
[384400939,1757377838518,-400.0,0.00019999,2]
[384400940,1757377838529,-402.02039369,0.00019999,2]
[384400941,1757377838538,-400.0,0.00019999,2]
[384400942,1757377838548,-400.0,0.00019999,2]
[384400943,1757377838557,-400.0,0.00019999,2]
[384400944,1757377838567,-400.0,0.00019999,2]
[384400945,1757377838576,-400.0,0.00019999,2]
[384400946,1757377838585,-400.0,0.00019999,2]
[384400947,1757377838595,-400.0,0.00019999,2]
[384400948,1757377838604,-400.0,0.00019999,2]
[384400949,1757377838614,-400.0,0.00019999,2]
[384400950,1757377838623,-400.0,0.00019999,2]
[384400951,1757377838633,-400.0,0.00019999,2]
[384400952,1757377838643,-400.0,0.00019999,2]
[384400953,1757377838652,-288.4,0.00019999,2]
[384400954,1757377838662,-400.0,0.00019999,2]
[384400955,1757377838674,-400.0,0.00019999,2]
[384400956,1757377838685,-400.0,0.00019999,2]
[384400957,1757377838695,-400.0,0.00019999,2]
[384400958,1757377838704,-150.0,0.00019999,2]
[384400959,1757377838714,-400.0,0.00019999,2]
[384400960,1757377838724,-150.0,0.00019999,2]
[384400961,1757377838733,-150.0,0.00019999,2]
[384400962,1757377838743,-150.0,0.00019999,2]
[384400963,1757377838753,-150.0,0.00019999,2]
[384400964,1757377838763,-150.0,0.00019999,2]
[384400965,1757377838772,-500.0,0.00019999,2]
[384400966,1757377838782,-150.0,0.00019999,2]
[384400967,1757377838791,-500.0,0.00019999,2]
[384400968,1757377838800,-150.0,0.00019999,2]
[384400969,1757377838809,-150.0,0.00019999,2]
[384400970,1757377838819,-400.0,0.00019999,2]
[384400971,1757377838828,-400.0,0.00019999,2]
[384400972,1757377838837,-400.0,0.00019999,2]
[384400973,1757377838847,-611.92,0.00019999,2]
[384400974,1757377838856,-400.0,0.00019999,2]
[384400975,1757377838866,-400.0,0.00019999,2]
[384400976,1757377838875,-400.0,0.00019999,2]
[384400977,1757377838885,-400.0,0.00019999,2]
[384400978,1757377838894,-400.0,0.00019999,2]
[384400979,1757377838903,-629.3,0.00019999,2]
[384400980,1757377838913,-400.0,0.00019999,2]
[384400981,1757377838922,-400.0,0.00019999,2]
[384400982,1757377838933,-400.0,0.00019999,2]
[384400983,1757377838943,-331.45,0.00019999,2]
[384400984,1757377838952,-552.34,0.00019999,2]
[384400985,1757377838961,-400.0,0.00019999,2]
[384400986,1757377838971,-400.0,0.00019999,2]
[384400987,1757377838980,-716.0,0.0002,2]
[384400988,1757377838989,-84976.41922499,0.0002,2]
[384400989,1757377838999,-202.62116996,0.0002,2]
[384400990,1757377839008,-1544151.81252382,0.0002,2]
[384400991,1757377839018,-35613.58722162,0.0002,2]
[384400992,1757377839027,-1055259.39126372,0.0002,2]
[384400993,1757377839045,-16752.490794,0.0002,2]
[384400994,1757377839245,-42471.84700533,0.0002,2]
[384400995,1757377839272,-12068.501,0.0002,2]
[384400996,1757377839283,-1102.4,0.0002,2]
[384400997,1757377839295,-17977.18936427,0.0002,2]
[384400998,1757377839306,-859.17381,0.0002,2]
[384400999,1757377839317,-1072.35,0.0002,2]
[384401000,1757377839725,-5821.20250182,0.0002,2]
[384401001,1757377839739,-6883.38337673,0.0002,2]
[384401002,1757377839752,-4128.63986883,0.0002,2]
[384401003,1757377839764,-4432.26839026,0.0002,2]
[384401004,1757377839776,-13284.56906506,0.0002,2]
[384401005,1757377839788,-13724.12069904,0.0002,2]
[384401006,1757377839800,-1500.04102813,0.0002,2]
[384401007,1757377839811,-12370.92523331,0.0002,2]
[384401008,1757377839832,-531906.1965316,0.0002,2]
[384401009,1757377839849,-725.0,0.00019897,2]
[384401010,1757377839858,-27172.5,0.0002,2]
[384401011,1757377839870,-9420.40303748,0.0002,2]
[384401052,1757377843016,-0.05157961,0.0002,2]
[384401059,1757377843073,-514.7639753,0.0002,2]
[384401310,1757377845472,-1957.868295,0.00019897,2]
[384401317,1757377845527,-300.0,0.00019897,2]
[384401319,1757377845538,-529.07139329,0.00019897,2]
[384401425,1757377869705,1263.0,0.00030137,120]
[384401426,1757377921679,221.78,0.00026588,120]
[384401427,1757377922119,221.78,0.00029005,120]
[384401428,1757377989758,14111.62088329,0.00030136,120]
[384401443,1757378181758,50261.0,0.0002,7]
[384401444,1757378365223,1000.0,0.00030136,120]
[384401445,1757378377318,1000.0,0.00030136,120]
[384401446,1757378389082,1000.0,0.00030136,120]
[384401447,1757378403614,1000.0,0.00030136,120]
[384401448,1757378415257,768.7356502,0.00030136,120]
[384401449,1757378505311,158.77,9.548e-05,2]
[384401450,1757378510881,1380.08,0.00019999,5]
[384401451,1757378511128,1380.08,0.00019999,5]
[384401452,1757378511716,444.65675402,0.00019999,5]
[384401453,1757378589150,150.0,0.0001905,7]
[384401454,1757378749348,685.25,0.0003,120]
[384401455,1757378767609,152.25,0.00030136,120]
[384401456,1757378773719,7000.0,0.000195,4]
[384401457,1757378826368,3000.0,0.000195,4]
[384401459,1757378889361,161.54,0.00028534,120]
[384401460,1757378985402,157.0,0.000301,120]
[384401461,1757378990758,157.0,0.000301,120]
[384401462,1757378991687,157.0,0.000301,120]
[384401463,1757378992182,157.0,0.000301,120]
[384401464,1757378993106,157.0,0.000301,120]
[384401465,1757378994331,157.0,0.000301,120]
[384401466,1757378995155,157.0,0.000301,120]
[384401467,1757378995506,157.0,0.000301,120]
[384401468,1757378996001,157.0,0.000301,120]
[384401469,1757379015271,157.0,0.000301,120]
[384401470,1757379021884,157.0,0.000301,120]
[384401471,1757379022267,157.0,0.000301,120]
[384401472,1757379022680,157.0,0.000301,120]
[384401473,1757379023101,157.0,0.000301,120]
[384401474,1757379026305,157.0,0.000301,120]
[384401478,1757379031584,-161.54,0.00019023,2]
[384401479,1757379031593,-250.0,0.0001904,2]
[384401480,1757379031603,-572.94247718,0.00019057,3]
[384401481,1757379031638,-93.05752282,0.00019057,3]
[384401482,1757379031649,-300.0,0.00019062,2]
[384401483,1757379031660,-317.63,0.00019067,2]
[384401484,1757379031670,-200.0,0.00019106,2]
[384401485,1757379031680,-150.29,0.00019147,2]
[384401486,1757379031690,-221.78,0.00019337,2]
[384401487,1757379031700,-500.0,0.00019562,2]
[384401488,1757379031710,-152.0,0.00019588,3]
[384401489,1757379031719,-399.0,0.000197,2]
[384401490,1757379031729,-1000.0,0.000197,2]
[384401491,1757379031738,-1200.0,0.00019798,2]
[384401492,1757379031747,-1000.0,0.000198,2]
[384401493,1757379031757,-2327.05737,0.000198,2]
[384401494,1757379031767,-152.0,0.00019809,4]
[384401495,1757379031776,-277.35679052,0.00019885,2]
[384401496,1757379031786,-418.0,0.00019896,2]
[384401497,1757379031796,-1258.0,0.00019897,2]
[384401498,1757379031807,-2036.0,0.00019897,2]
[384401499,1757379031817,-1111.41607091,0.00019897,2]